[Event "European Rapid Championship 2021"]
[Site "Katowice"]
[Date "2021.12.19"]
[Round "8.3"]
[White "Keinanen, Toivo"]
[Black "Mirzoev, Emil"]
[Result "1/2-1/2"]
[ECO "A46"]
[WhiteElo "2341"]
[BlackElo "2418"]
[Annotator "NA"]
[PlyCount "54"]
[EventDate "2021.12.18"]
[EventType "swiss"]
[EventCountry "POL"]
[SourceTitle "playchess.com"]
[Source "ChessBase"]
[SourceQuality "1"]
[TimeControl "900+10"]

1. d4 {[%emt 0:00:01]} Nf6 {[%emt 0:00:06]} 2. Nf3 {[%emt 0:00:01]} e6 {
[%emt 0:00:07]} 3. e3 {[%emt 0:00:20]} b6 {[%emt 0:00:25]} 4. Bd3 {[%emt 0:00:
04]} Bb7 {[%emt 0:00:01]} 5. O-O {[%emt 0:00:06]} d6 {[%emt 0:00:57]} 6. c4 {
[%emt 0:01:37]} Nbd7 {[%emt 0:01:01]} 7. Nc3 {[%emt 0:00:10]} g6 {[%emt 0:00:
30]} 8. e4 {[%emt 0:03:21]} Bg7 {[%emt 0:00:01]} 9. Be3 {[%emt 0:01:14]} O-O {
[%emt 0:00:06]} 10. Qd2 {[%emt 0:00:05]} e5 {[%emt 0:01:22]} 11. d5 {[%emt 0:
00:41]} Ng4 {[%emt 0:00:47]} 12. Bg5 {[%emt 0:00:01]} f6 {[%emt 0:01:32]} 13.
Bh4 {[%emt 0:00:01]} a5 {[%emt 0:00:46]} 14. b3 {[%emt 0:01:14]} h5 {[%emt 0:
01:24]} 15. h3 {[%emt 0:02:20]} Nh6 {[%emt 0:00:01]} 16. Ne2 {[%emt 0:00:35]}
Bc8 {[%emt 0:00:55]} 17. Bg3 {[%emt 0:00:57]} Qe8 {[%emt 0:01:51]} 18. Nh4 {
[%emt 0:00:39]} g5 {[%emt 0:00:58]} 19. Nf5 {[%emt 0:00:18]} Nc5 {[%emt 0:01:
02]} 20. Nxg7 {[%emt 0:01:30]} Kxg7 {[%emt 0:00:06]} 21. f3 {[%emt 0:01:06]}
Nxd3 {[%emt 0:00:38]} 22. Qxd3 {[%emt 0:00:00]} f5 23. h4 {[%emt 0:00:46]} f4 {
[%emt 0:01:02]} 24. hxg5 {[%emt 0:00:05]} Nf7 {[%emt 0:00:10]} 25. Bh4 {
[%emt 0:00:16]} Nh8 {[%emt 0:00:37]} 26. Kf2 {[%emt 0:00:21]} Ng6 {[%emt 0:00:
18]} 27. Rh1 a4 1/2-1/2

[Event "European Rapid Championship 2021"]
[Site "Katowice"]
[Date "2021.12.19"]
[Round "8.3"]
[White "Paprocki, Jaroslaw"]
[Black "Fus, Jakub"]
[Result "0-1"]
[ECO "E16"]
[WhiteElo "2165"]
[BlackElo "2252"]
[Annotator "NA"]
[PlyCount "162"]
[EventDate "2021.12.18"]
[EventType "swiss"]
[EventCountry "POL"]
[SourceTitle "playchess.com"]
[Source "ChessBase"]
[SourceQuality "1"]
[TimeControl "900+10"]

1. d4 {[%emt 0:00:03]} Nf6 {[%emt 0:00:04]} 2. Nf3 {[%emt 0:00:05]} e6 {
[%emt 0:00:03]} 3. c4 {[%emt 0:00:03]} Bb4+ {[%emt 0:00:02]} 4. Bd2 {[%emt 0:
00:25]} Qe7 {[%emt 0:00:02]} 5. a3 {[%emt 0:00:07]} Bxd2+ {[%emt 0:00:02]} 6.
Qxd2 {[%emt 0:00:01]} d6 {[%emt 0:00:02]} 7. b4 {[%emt 0:00:39]} a5 {[%emt 0:
00:10]} 8. b5 {[%emt 0:00:01]} e5 {[%emt 0:00:02]} 9. e3 {[%emt 0:00:20]} exd4
{[%emt 0:00:02]} 10. Qxd4 {[%emt 0:00:07]} Nbd7 {[%emt 0:00:04]} 11. Be2 {
[%emt 0:00:39]} Nc5 {[%emt 0:00:02]} 12. Nbd2 {[%emt 0:00:04]} O-O {[%emt 0:00:
04]} 13. O-O {[%emt 0:00:02]} Bg4 {[%emt 0:00:19]} 14. Rfe1 {[%emt 0:00:09]}
Rfe8 {[%emt 0:00:22]} 15. Rad1 {[%emt 0:00:16]} Rad8 {[%emt 0:01:46]} 16. Qc3 {
[%emt 0:01:28]} a4 {[%emt 0:00:02]} 17. Nd4 {[%emt 0:00:24]} Bc8 {[%emt 0:01:
12]} 18. Bf3 {[%emt 0:00:06]} Nfd7 {[%emt 0:00:10]} 19. Bg4 {[%emt 0:01:07]}
Ne5 {[%emt 0:00:58]} 20. Bxc8 {[%emt 0:00:04]} Rxc8 {[%emt 0:00:02]} 21. Nf1 {
[%emt 0:00:41]} g6 {[%emt 0:00:20]} 22. e4 {[%emt 0:00:40]} Ned7 {[%emt 0:01:
08]} 23. f3 {[%emt 0:00:07]} Nb6 {[%emt 0:00:16]} 24. Ne3 {[%emt 0:00:09]} Qf6
{[%emt 0:00:02]} 25. Ne2 {[%emt 0:01:15]} Qxc3 {[%emt 0:00:18]} 26. Nxc3 {
[%emt 0:00:01]} Kg7 {[%emt 0:00:14]} 27. Ncd5 {[%emt 0:00:05]} Nbd7 {[%emt 0:
00:45]} 28. Re2 {[%emt 0:00:18]} Ne5 {[%emt 0:00:05]} 29. Red2 {[%emt 0:00:54]}
Nb3 {[%emt 0:00:41]} 30. Rc2 {[%emt 0:00:21]} Red8 {[%emt 0:01:19]} 31. h3 {
[%emt 0:00:12]} h5 {[%emt 0:00:48]} 32. Kf2 {[%emt 0:00:27]} Nd7 {[%emt 0:00:
10]} 33. Nc3 {[%emt 0:00:44]} Nb6 {[%emt 0:00:18]} 34. Ncd5 {[%emt 0:00:20]}
Nd7 {[%emt 0:00:11]} 35. g4 {[%emt 0:00:23]} hxg4 {[%emt 0:00:28]} 36. hxg4 {
[%emt 0:00:00]} Nbc5 {[%emt 0:00:00]} 37. g5 {[%emt 0:00:15]} Ne6 {[%emt 0:00:
51]} 38. f4 {[%emt 0:00:58]} c6 {[%emt 0:01:40]} 39. bxc6 {[%emt 0:00:23]} bxc6
{[%emt 0:00:01]} 40. Ne7 {[%emt 0:00:19]} Rc7 {[%emt 0:00:07]} 41. Rxd6 {
[%emt 0:01:44]} Ndc5 {[%emt 0:00:02]} 42. Rxd8 {[%emt 0:01:07]} Nxd8 {[%emt 0:
00:01]} 43. N7f5+ {[%emt 0:00:55]} gxf5 {[%emt 0:00:02]} 44. exf5 {[%emt 0:00:
01]} Rb7 {[%emt 0:00:17]} 45. Ng4 {[%emt 0:00:12]} Rb3 {[%emt 0:00:44]} 46. Nf6
{[%emt 0:01:01]} Ndb7 {[%emt 0:00:03]} 47. Nh5+ {[%emt 0:00:53]} Kf8 {[%emt 0:
00:26]} 48. Re2 {[%emt 0:00:10]} Rh3 {[%emt 0:00:38]} 49. Nf6 {[%emt 0:01:32]}
Rh2+ {[%emt 0:00:01]} 50. Kf3 {[%emt 0:00:02]} Rxe2 {[%emt 0:00:02]} 51. Kxe2 {
[%emt 0:00:01]} Nd6 {[%emt 0:00:01]} 52. g6 {[%emt 0:00:44]} Nxf5 {[%emt 0:00:
14]} 53. gxf7 {[%emt 0:00:18]} Kxf7 {[%emt 0:00:02]} 54. Ng4 {[%emt 0:00:02]}
Ke6 {[%emt 0:00:13]} 55. Kd2 {[%emt 0:00:10]} Ne4+ {[%emt 0:01:14]} 56. Kd3 {
[%emt 0:00:12]} Nf6 {[%emt 0:00:10]} 57. Ne5 {[%emt 0:00:08]} c5 {[%emt 0:00:
23]} 58. Nf3 {[%emt 0:00:27]} Nd6 {[%emt 0:00:10]} 59. Nh4 {[%emt 0:00:20]} Nd7
{[%emt 0:00:04]} 60. Kc3 {[%emt 0:00:17]} Nb6 {[%emt 0:00:03]} 61. Ng6 {
[%emt 0:00:10]} Ndxc4 {[%emt 0:00:08]} 62. Nf8+ {[%emt 0:00:08]} Kd5 {[%emt 0:
00:23]} 63. f5 {[%emt 0:00:04]} Nxa3 {[%emt 0:00:02]} 64. f6 {[%emt 0:00:02]}
Nb5+ {[%emt 0:00:01]} 65. Kb2 {[%emt 0:00:04]} Nd6 {[%emt 0:00:02]} 66. Ka3 {
[%emt 0:00:06]} Ke5 {[%emt 0:00:12]} 67. Nh7 {[%emt 0:00:17]} Nb5+ {[%emt 0:00:
06]} 68. Ka2 {[%emt 0:00:03]} Ke6 {[%emt 0:00:02]} 69. Ng5+ {[%emt 0:00:06]}
Kd6 {[%emt 0:00:28]} 70. Ne4+ {[%emt 0:00:03]} Kc6 {[%emt 0:00:17]} 71. Ng5 {
[%emt 0:00:16]} Nd7 {[%emt 0:00:03]} 72. Nh7 {[%emt 0:00:03]} Nd6 {[%emt 0:00:
04]} 73. Ka3 {[%emt 0:00:01]} Kb5 {[%emt 0:00:01]} 74. Kb2 {[%emt 0:00:12]} Kb4
{[%emt 0:00:02]} 75. Kc2 {[%emt 0:00:14]} Nf7 {[%emt 0:00:01]} 76. Kd3 {
[%emt 0:00:14]} a3 {[%emt 0:00:03]} 77. Kc2 {[%emt 0:00:12]} c4 {[%emt 0:00:01]
} 78. Kc1 {[%emt 0:00:24]} Kc3 {[%emt 0:00:03]} 79. Kb1 {[%emt 0:00:03]} Kd2 {
[%emt 0:00:13]} 80. Ka2 {[%emt 0:00:18]} c3 {[%emt 0:00:01]} 81. Kxa3 {[%emt 0:
00:29]} c2 {[%emt 0:00:02]} 0-1

[Event "European Rapid Championship 2021"]
[Site "Katowice"]
[Date "2021.12.19"]
[Round "8.4"]
[White "Grabarczyk, Miroslaw"]
[Black "Kozlowski, Michal"]
[Result "1-0"]
[ECO "E06"]
[WhiteElo "2373"]
[BlackElo "2047"]
[Annotator "NA"]
[PlyCount "55"]
[EventDate "2021.12.18"]
[EventType "swiss"]
[EventCountry "POL"]
[SourceTitle "playchess.com"]
[Source "ChessBase"]
[SourceQuality "1"]
[TimeControl "900+10"]

1. d4 {[%emt 0:00:02]} Nf6 {[%emt 0:00:01]} 2. c4 {[%emt 0:00:02]} e6 {[%emt 0:
00:02]} 3. g3 {[%emt 0:00:02]} d5 {[%emt 0:00:02]} 4. Bg2 {[%emt 0:00:02]} Be7
{[%emt 0:00:01]} 5. Nf3 {[%emt 0:00:02]} O-O {[%emt 0:00:02]} 6. O-O {[%emt 0:
00:03]} b6 {[%emt 0:00:02]} 7. cxd5 {[%emt 0:00:03]} exd5 {[%emt 0:00:02]} 8.
Nc3 {[%emt 0:00:02]} Nbd7 {[%emt 0:00:12]} 9. Bf4 {[%emt 0:00:03]} a6 {[%emt 0:
00:08]} 10. Ne5 {[%emt 0:00:32]} Bb7 {[%emt 0:00:04]} 11. Qb3 {[%emt 0:00:03]}
Nxe5 {[%emt 0:03:26]} 12. dxe5 {[%emt 0:00:21]} Ne4 {[%emt 0:00:01]} 13. Nxe4 {
[%emt 0:00:56]} dxe4 {[%emt 0:00:02]} 14. Rfd1 {[%emt 0:00:07]} Qc8 {[%emt 0:
00:03]} 15. Qc2 {[%emt 0:00:02]} c5 {[%emt 0:01:56]} 16. Bxe4 {[%emt 0:00:09]}
Bxe4 {[%emt 0:00:03]} 17. Qxe4 {[%emt 0:00:03]} Qe6 {[%emt 0:00:02]} 18. Rd5 {
[%emt 0:00:54]} g5 {[%emt 0:01:43]} 19. Be3 {[%emt 0:02:12]} f5 {[%emt 0:00:03]
} 20. Qg2 {[%emt 0:00:03]} Kh8 {[%emt 0:01:08]} 21. Rad1 {[%emt 0:00:14]} h5 {
[%emt 0:02:51]} 22. Rd7 {[%emt 0:00:56]} Qxe5 {[%emt 0:00:51]} 23. Bd2 {
[%emt 0:00:03]} Kg8 {[%emt 0:01:37]} 24. Bc3 {[%emt 0:00:09]} Qe6 {[%emt 0:01:
00]} 25. R1d6 {[%emt 0:02:43]} Bxd6 {[%emt 0:01:40]} 26. Rg7+ {[%emt 0:00:03]}
Kh8 {[%emt 0:00:01]} 27. Re7+ {[%emt 0:00:33]} Qf6 {[%emt 0:00:06]} 28. Bxf6+ {
[%emt 0:00:02]} 1-0

[Event "European Rapid Championship 2021"]
[Site "Katowice"]
[Date "2021.12.19"]
[Round "8.5"]
[White "Krasenkow, Michal"]
[Black "Kovalenko, Igor"]
[Result "1-0"]
[ECO "A04"]
[WhiteElo "2576"]
[BlackElo "2649"]
[Annotator "ChessBase"]
[PlyCount "103"]
[EventDate "2021.12.18"]
[EventType "swiss"]
[EventCountry "POL"]
[SourceTitle "playchess.com"]
[Source "ChessBase"]
[SourceQuality "1"]
[TimeControl "900+10"]

1. Nf3 {[%emt 0:00:03]} c5 {[%emt 0:00:02]} 2. c4 {[%emt 0:00:01]} Nc6 {
[%emt 0:00:04]} 3. d4 {[%emt 0:00:01]} cxd4 {[%emt 0:00:03]} 4. Nxd4 {[%emt 0:
00:02]} Nf6 {[%emt 0:00:09]} 5. Nc3 {[%emt 0:00:01]} g6 {[%emt 0:00:18]} 6. e4
{[%emt 0:00:03]} Bg7 {[%emt 0:00:01]} 7. Be3 {[%emt 0:00:01]} d6 {[%emt 0:00:
01]} 8. Be2 {[%emt 0:00:01]} O-O {[%emt 0:00:02]} 9. O-O {[%emt 0:00:02]} Bd7 {
[%emt 0:00:09]} 10. f4 {[%emt 0:00:01]} Rc8 {[%emt 0:01:06]} 11. Nc2 {[%emt 0:
00:35]} a6 {[%emt 0:00:11]} 12. Bf3 {[%emt 0:00:58]} Be6 {[%emt 0:00:34]} 13.
Nd5 {[%emt 0:00:11]} Nd7 {[%emt 0:00:03]} 14. Rb1 {[%emt 0:00:13]} Qa5 {
[%emt 0:03:18]} 15. a3 {[%emt 0:00:34]} b5 {[%emt 0:00:25]} 16. b4 {[%emt 0:01:
14]} Qa4 {[%emt 0:00:03]} 17. Qd2 {[%emt 0:00:56]} Bxd5 {[%emt 0:02:33]} 18.
exd5 {[%emt 0:03:08]} Ncb8 {[%emt 0:00:01]} 19. Nd4 {[%emt 0:04:27]} bxc4 {
[%emt 0:00:35]} 20. Qa2 {[%emt 0:01:25]} Nf6 {[%emt 0:00:28]} 21. Rfc1 {
[%emt 0:00:07]} c3 {[%emt 0:00:38]} 22. Rb3 {[%emt 0:00:52]} a5 {[%emt 0:00:23]
} 23. Qb1 {[%emt 0:00:29]} axb4 {[%emt 0:00:33]} 24. axb4 {[%emt 0:00:03]} Rc7
{[%emt 0:05:50]} 25. Rbxc3 {[%emt 0:00:09]} Rb7 {[%emt 0:00:06]} 26. Rc4 {
[%emt 0:00:09]} Nbd7 {[%emt 0:00:29]} 27. b5 {[%emt 0:00:28]} Qa3 {[%emt 0:00:
03]} 28. R1c3 {[%emt 0:00:10]} Qa8 {[%emt 0:00:01]} 29. Nc6 {[%emt 0:00:05]}
Nb6 {[%emt 0:00:21]} 30. Bxb6 {[%emt 0:00:13]} Rxb6 {[%emt 0:00:01]} 31. Nxe7+
{[%emt 0:00:03]} Kh8 {[%emt 0:00:01]} 32. Nc8 {[%emt 0:00:31]} Rb8 {[%emt 0:00:
37]} 33. Nxd6 {[%emt 0:00:04]} Nxd5 {[%emt 0:00:10]} 34. Rd3 {[%emt 0:00:45]}
Qa7+ {[%emt 0:00:02]} 35. Kh1 {[%emt 0:00:01]} Nb6 {[%emt 0:00:28]} 36. Rc6 {
[%emt 0:00:02]} Qa4 {[%emt 0:00:22]} 37. g3 {[%emt 0:00:05]} Kg8 {[%emt 0:00:
13]} 38. Qg1 {[%emt 0:00:13]} Qa5 {[%emt 0:00:21]} 39. Qe3 {[%emt 0:00:42]} Nd7
{[%emt 0:00:30]} 40. Bd5 {[%emt 0:00:22]} Nf6 41. Bc4 {[%emt 0:00:16]} Qa1+ {
[%emt 0:00:17]} 42. Kg2 {[%emt 0:00:01]} Ng4 {[%emt 0:00:06]} 43. Qe2 Nh6 44.
b6 {[%emt 0:00:17]} Qa4 {[%emt 0:00:02]} 45. Bd5 {[%emt 0:00:16]} Rfd8 {
[%emt 0:00:17]} 46. b7 {[%emt 0:00:41]} Bf8 47. Nxf7 {[%emt 0:00:22]} Rxd5 {
[%emt 0:00:08]} 48. Nxh6+ {[%emt 0:00:06]} Kg7 {[%emt 0:00:04]} 49. Rc7+ {
[%emt 0:00:06]} Kxh6 {[%emt 0:00:00]} 50. Rxd5 {[%emt 0:00:04]} Qb3 {[%emt 0:
00:03]} 51. Rh5+ {[%emt 0:00:09]} gxh5 {[%emt 0:00:02]} 52. Qa6+ {[%emt 0:00:
00]} 1-0

[Event "European Rapid Championship 2021"]
[Site "Katowice"]
[Date "2021.12.19"]
[Round "8.5"]
[White "Martinkus, Rolandas"]
[Black "Molenda, Marcin"]
[Result "1-0"]
[ECO "A05"]
[WhiteElo "2033"]
[BlackElo "2365"]
[Annotator "NA"]
[PlyCount "161"]
[EventDate "2021.12.18"]
[EventType "swiss"]
[EventCountry "POL"]
[SourceTitle "playchess.com"]
[Source "ChessBase"]
[SourceQuality "1"]
[TimeControl "900+10"]

1. Nf3 {[%emt 0:00:02]} Nf6 {[%emt 0:00:02]} 2. c4 {[%emt 0:00:01]} g6 {
[%emt 0:00:02]} 3. Nc3 {[%emt 0:00:01]} Bg7 {[%emt 0:00:02]} 4. e4 {[%emt 0:00:
02]} d6 {[%emt 0:00:01]} 5. d4 {[%emt 0:00:01]} O-O {[%emt 0:00:02]} 6. h3 {
[%emt 0:00:01]} e5 {[%emt 0:00:08]} 7. dxe5 {[%emt 0:00:08]} dxe5 {[%emt 0:00:
12]} 8. Qxd8 {[%emt 0:00:02]} Rxd8 {[%emt 0:00:01]} 9. Bg5 {[%emt 0:00:02]} Re8
{[%emt 0:01:23]} 10. O-O-O {[%emt 0:00:03]} Na6 {[%emt 0:00:24]} 11. Be3 {
[%emt 0:00:13]} c6 {[%emt 0:00:07]} 12. c5 {[%emt 0:00:16]} Nc7 {[%emt 0:00:09]
} 13. Nd2 {[%emt 0:00:15]} Be6 {[%emt 0:01:07]} 14. Nc4 {[%emt 0:00:11]} Rab8 {
[%emt 0:01:19]} 15. Be2 {[%emt 0:00:17]} Red8 {[%emt 0:01:26]} 16. Rxd8+ {
[%emt 0:03:51]} Rxd8 {[%emt 0:00:02]} 17. Rd1 {[%emt 0:00:03]} Rxd1+ {[%emt 0:
00:23]} 18. Kxd1 {[%emt 0:00:01]} Nd7 {[%emt 0:00:33]} 19. Nd6 {[%emt 0:01:22]}
b6 {[%emt 0:01:02]} 20. Nc8 {[%emt 0:00:10]} Nxc5 {[%emt 0:00:08]} 21. Nxa7 {
[%emt 0:00:02]} Bd7 {[%emt 0:00:14]} 22. b4 {[%emt 0:00:12]} N5e6 {[%emt 0:00:
50]} 23. Bxb6 {[%emt 0:00:08]} Bf8 {[%emt 0:00:01]} 24. a3 {[%emt 0:00:40]} f5
{[%emt 0:00:05]} 25. exf5 {[%emt 0:03:03]} gxf5 {[%emt 0:00:02]} 26. g4 {
[%emt 0:00:01]} f4 {[%emt 0:00:28]} 27. Bf3 {[%emt 0:01:40]} Na8 {[%emt 0:00:
02]} 28. Ba5 {[%emt 0:01:58]} Nd4 {[%emt 0:00:46]} 29. Be4 {[%emt 0:00:05]} Be8
{[%emt 0:03:34]} 30. Ne2 {[%emt 0:01:09]} Nb3 {[%emt 0:01:17]} 31. Bd8 {
[%emt 0:00:37]} Bd6 {[%emt 0:00:01]} 32. Nxc6 {[%emt 0:00:15]} Nc7 {[%emt 0:00:
05]} 33. Kc2 {[%emt 0:01:02]} Bf7 {[%emt 0:00:38]} 34. Bf6 {[%emt 0:00:48]} Nb5
{[%emt 0:00:15]} 35. Kb2 {[%emt 0:00:40]} Nd2 {[%emt 0:00:09]} 36. Bd3 {
[%emt 0:00:16]} Nc4+ {[%emt 0:00:01]} 37. Bxc4 {[%emt 0:00:23]} Bxc4 {[%emt 0:
00:01]} 38. Nc3 {[%emt 0:00:12]} Kf7 {[%emt 0:01:47]} 39. Bxe5 {[%emt 0:00:08]}
Bf8 {[%emt 0:00:20]} 40. Nxb5 {[%emt 0:00:11]} Bxb5 {[%emt 0:00:01]} 41. Nd4 {
[%emt 0:00:01]} Bf1 {[%emt 0:00:04]} 42. h4 {[%emt 0:00:11]} Be7 {[%emt 0:00:
17]} 43. g5 {[%emt 0:00:01]} Kg6 {[%emt 0:00:04]} 44. Bxf4 {[%emt 0:00:07]} Kh5
{[%emt 0:00:01]} 45. Bg3 {[%emt 0:00:12]} Kg4 {[%emt 0:00:06]} 46. Kc3 {
[%emt 0:00:12]} Bf8 {[%emt 0:00:09]} 47. Ne6 {[%emt 0:00:17]} Be7 {[%emt 0:00:
06]} 48. a4 {[%emt 0:00:03]} Kf5 {[%emt 0:00:05]} 49. Nc5 {[%emt 0:00:20]} Bf8
{[%emt 0:00:05]} 50. a5 {[%emt 0:00:07]} Bg7+ {[%emt 0:00:02]} 51. Kb3 {
[%emt 0:00:01]} Bb5 {[%emt 0:00:01]} 52. Nb7 {[%emt 0:00:24]} Ke6 {[%emt 0:00:
07]} 53. Nd6 {[%emt 0:00:05]} Be2 {[%emt 0:00:01]} 54. b5 {[%emt 0:00:11]} Bf8
{[%emt 0:00:10]} 55. Nc4 {[%emt 0:00:05]} Kd5 {[%emt 0:00:01]} 56. Ne3+ {
[%emt 0:00:09]} Kc5 {[%emt 0:00:01]} 57. b6 {[%emt 0:00:13]} Ba6 {[%emt 0:00:
01]} 58. f4 {[%emt 0:00:24]} Kb5 {[%emt 0:00:03]} 59. f5 {[%emt 0:00:42]} Kxa5
{[%emt 0:00:04]} 60. Nd5 {[%emt 0:00:03]} Bc8 {[%emt 0:00:11]} 61. Kc4 {
[%emt 0:00:35]} Ka6 {[%emt 0:00:17]} 62. f6 {[%emt 0:00:08]} Be6 {[%emt 0:00:
02]} 63. Kd4 {[%emt 0:00:06]} Ba3 {[%emt 0:00:03]} 64. h5 {[%emt 0:00:12]} Bb2+
{[%emt 0:00:02]} 65. Kc5 {[%emt 0:00:06]} Kb7 {[%emt 0:00:11]} 66. g6 {[%emt 0:
00:14]} hxg6 {[%emt 0:00:01]} 67. hxg6 {[%emt 0:00:01]} Bxd5 {[%emt 0:00:02]}
68. Kxd5 {[%emt 0:00:02]} Bxf6 {[%emt 0:00:02]} 69. Bc7 {[%emt 0:00:04]} Bg7 {
[%emt 0:00:11]} 70. Ke6 {[%emt 0:00:01]} Bd4 {[%emt 0:00:01]} 71. Kf7 {[%emt 0:
00:01]} Bc3 {[%emt 0:00:02]} 72. g7 {[%emt 0:00:01]} Bxg7 {[%emt 0:00:01]} 73.
Kxg7 {[%emt 0:00:01]} Ka8 {[%emt 0:00:00]} 74. Kf6 {[%emt 0:00:02]} Kb7 {
[%emt 0:00:01]} 75. Ke5 {[%emt 0:00:01]} Ka8 {[%emt 0:00:01]} 76. Kd5 {[%emt 0:
00:01]} Kb7 {[%emt 0:00:00]} 77. Kc5 {[%emt 0:00:02]} Ka8 {[%emt 0:00:00]} 78.
Bg3 {[%emt 0:00:04]} Kb7 {[%emt 0:00:01]} 79. Bf2 {[%emt 0:00:01]} Ka8 {
[%emt 0:00:01]} 80. Kc6 Kb8 81. Bg3+ {[%emt 0:00:05]} 1-0

[Event "European Rapid Championship 2021"]
[Site "Katowice"]
[Date "2021.12.19"]
[Round "8.6"]
[White "Balog, Imre"]
[Black "Blohberger, Felix"]
[Result "1-0"]
[ECO "A45"]
[WhiteElo "2629"]
[BlackElo "2409"]
[Annotator "ChessBase"]
[PlyCount "97"]
[EventDate "2021.12.18"]
[EventType "swiss"]
[EventCountry "POL"]
[SourceTitle "playchess.com"]
[Source "ChessBase"]
[SourceQuality "1"]
[TimeControl "900+10"]

1. d4 {[%emt 0:00:05]} Nf6 {[%emt 0:00:01]} 2. Bg5 {[%emt 0:00:06]} e6 {
[%emt 0:00:02]} 3. e4 {[%emt 0:00:10]} h6 {[%emt 0:00:01]} 4. Bxf6 {[%emt 0:00:
02]} Qxf6 {[%emt 0:00:02]} 5. Nc3 {[%emt 0:00:03]} Bb4 {[%emt 0:00:01]} 6. Qd2
{[%emt 0:00:01]} c5 {[%emt 0:01:10]} 7. e5 {[%emt 0:01:13]} Qd8 {[%emt 0:01:20]
} 8. a3 {[%emt 0:00:06]} Qa5 {[%emt 0:00:45]} 9. dxc5 {[%emt 0:03:19]} Bxc3 {
[%emt 0:00:50]} 10. Qxc3 {[%emt 0:00:45]} Qxc3+ {[%emt 0:00:01]} 11. bxc3 {
[%emt 0:00:01]} Nc6 {[%emt 0:02:34]} 12. Nf3 {[%emt 0:00:09]} b6 {[%emt 0:00:
05]} 13. Bd3 {[%emt 0:00:20]} bxc5 {[%emt 0:02:33]} 14. Rb1 {[%emt 0:00:14]}
Rb8 {[%emt 0:01:00]} 15. Kd2 {[%emt 0:00:03]} Kd8 {[%emt 0:00:06]} 16. Be4 {
[%emt 0:00:12]} Kc7 {[%emt 0:00:24]} 17. Bxc6 {[%emt 0:00:11]} Rxb1 {[%emt 0:
00:15]} 18. Rxb1 {[%emt 0:00:02]} Kxc6 {[%emt 0:00:01]} 19. Ke3 {[%emt 0:00:03]
} Bb7 {[%emt 0:00:34]} 20. Nd2 {[%emt 0:00:06]} Kc7 {[%emt 0:00:13]} 21. g3 {
[%emt 0:00:39]} f6 {[%emt 0:00:16]} 22. Nb3 {[%emt 0:01:45]} fxe5 {[%emt 0:01:
05]} 23. Nxc5 {[%emt 0:00:01]} Bc6 {[%emt 0:00:06]} 24. Nd3 {[%emt 0:01:53]} d6
{[%emt 0:00:57]} 25. c4 {[%emt 0:00:00]} Rf8 {[%emt 0:00:19]} 26. f4 {[%emt 0:
00:47]} exf4+ {[%emt 0:00:08]} 27. gxf4 {[%emt 0:00:01]} g5 {[%emt 0:00:46]}
28. Rg1 {[%emt 0:02:23]} Rf5 {[%emt 0:00:02]} 29. Rg3 {[%emt 0:01:10]} e5 {
[%emt 0:00:31]} 30. fxe5 {[%emt 0:01:03]} dxe5 {[%emt 0:00:01]} 31. Rh3 {
[%emt 0:00:01]} e4 {[%emt 0:02:42]} 32. Nb4 {[%emt 0:00:01]} Rf6 {[%emt 0:00:
24]} 33. Nd5+ {[%emt 0:01:12]} Bxd5 {[%emt 0:00:01]} 34. cxd5 {[%emt 0:00:00]}
Kd6 {[%emt 0:00:08]} 35. Kd4 {[%emt 0:00:02]} g4 {[%emt 0:00:42]} 36. Rh5 {
[%emt 0:00:50]} e3 {[%emt 0:00:23]} 37. Kxe3 {[%emt 0:00:01]} Kc5 {[%emt 0:00:
01]} 38. Ke4 {[%emt 0:00:01]} Rf1 {[%emt 0:00:48]} 39. Rxh6 {[%emt 0:01:19]}
Re1+ {[%emt 0:00:04]} 40. Kf4 {[%emt 0:00:00]} Kxd5 {[%emt 0:00:09]} 41. Kxg4 {
[%emt 0:00:01]} Re2 {[%emt 0:00:16]} 42. h4 {[%emt 0:00:01]} Re4+ {[%emt 0:00:
06]} 43. Kf5 {[%emt 0:00:21]} Ra4 {[%emt 0:00:02]} 44. h5 {[%emt 0:00:03]} Rxa3
{[%emt 0:00:02]} 45. Rh8 {[%emt 0:00:01]} Rf3+ {[%emt 0:00:12]} 46. Kg4 {
[%emt 0:00:03]} Rf2 {[%emt 0:00:27]} 47. h6 {[%emt 0:00:02]} Rg2+ {[%emt 0:00:
13]} 48. Kf3 {[%emt 0:00:05]} Rh2 {[%emt 0:00:09]} 49. h7 {[%emt 0:00:03]} 1-0